fUST/lending_fUST_20250127
["ID","MTS","AMOUNT","RATE_DAILY","PERIOD"]
[350543941,1737957062497,-446.977928,0.00022519,7]
[350543942,1737957062507,-446.977931,0.00022519,7]
[350543943,1737957062518,-914.126401,0.00022519,7]
[350543944,1737957062528,-914.126401,0.00022519,7]
[350543945,1737957062538,-914.126401,0.00022519,7]
[350543946,1737957062548,-914.126401,0.00022519,7]
[350543947,1737957062559,-914.126401,0.00022519,7]
[350543948,1737957062568,-914.126401,0.00022519,7]
[350543949,1737957062578,-914.126399,0.00022519,7]
[350543950,1737957062587,-280.60574313,0.00022523,2]
[350543951,1737957062596,-191.501878,0.00022526,7]
[350543952,1737957062605,-191.501878,0.00022526,7]
[350543953,1737957062615,-191.501878,0.00022526,7]
[350543954,1737957062625,-191.501878,0.00022526,7]
[350543955,1737957062640,-191.501878,0.00022526,7]
[350543956,1737957062650,-191.501878,0.00022526,7]
[350543957,1737957062660,-191.501878,0.00022526,7]
[350543958,1737957062670,-191.501878,0.00022526,7]
[350543959,1737957062679,-191.501878,0.00022526,7]
[350543960,1737957062690,-191.501878,0.00022526,7]
[350543961,1737957062700,-191.501878,0.00022526,7]
[350543962,1737957062710,-191.501878,0.00022526,7]
[350543963,1737957062721,-191.501878,0.00022526,7]
[350543964,1737957062732,-191.501878,0.00022526,7]
[350543965,1737957062743,-191.501878,0.00022526,7]
[350543966,1737957062753,-191.501878,0.00022526,7]
[350543967,1737957062764,-191.501878,0.00022526,7]
[350543968,1737957062775,-191.501878,0.00022526,7]
[350543969,1737957062785,-191.501878,0.00022526,7]
[350543970,1737957062797,-191.501874,0.00022526,7]
[350543971,1737957062808,-225.77855462,0.00022526,14]
[350543972,1737957063030,-151.58902426,0.00022526,14]
[350543973,1737957063041,-670.0,0.00022526,3]
[350543974,1737957063052,-150.14,0.00022526,14]
[350543975,1737957063063,-500.0,0.00022526,14]
[350543976,1737957063075,-150.14,0.00022526,2]
[350543977,1737957063087,-229.06165955,0.00022526,14]
[350543978,1737957063099,-500.0,0.00022526,14]
[350543979,1737957063110,-219.92791157,0.00022526,14]
[350543980,1737957063121,-151.0,0.00022527,7]
[350543981,1737957063131,-201.084262,0.00022527,7]
[350543982,1737957063147,-151.0,0.00022527,7]
[350543983,1737957063157,-151.0,0.00022527,7]
[350543984,1737957063170,-170.139206,0.00022527,7]
[350543985,1737957063182,-2160915.34212256,0.00022534,61]
[350543986,1737957063268,-91034.00000001,0.00022534,61]
[350543987,1737957063280,-332.19809761,0.00022534,61]
[350543988,1737957063296,-500.0,0.00021682,2]
[350543989,1737957063305,-957.5,0.00022534,61]
[350543990,1737957063316,-7266.89032186,0.00022534,61]
[350543991,1737957063333,-500.0,0.0002127,2]
[350543992,1737957063342,-3209.20943133,0.00022534,61]
[350543993,1737957063353,-9396.70900081,0.00022534,61]
[350543994,1737957063365,-2024.67232419,0.00022534,61]
[350543995,1737957063394,-1705.04698977,0.00022534,61]
[350543996,1737957063448,-324.22683165,0.00022534,61]
[350543997,1737957063459,-822.16412362,0.00022534,61]
[350543998,1737957063565,-3499.791812,0.00022534,61]
[350543999,1737957063578,-1569.66884816,0.00022534,61]
[350544000,1737957063705,-376.37495816,0.00020996,2]
[350544001,1737957063716,-170.20386347,0.00020997,2]
[350544002,1737957063728,-329.79613653,0.00020997,2]
[350544003,1737957063738,-557.36,0.00020997,2]
[350544004,1737957063749,-500.0,0.00020997,2]
[350544005,1737957063759,-500.0,0.00020998,2]
[350544006,1737957063769,-562.45,0.00021134,2]
[350544007,1737957063779,-500.0,0.00021134,2]
[350544008,1737957063789,-500.0,0.00021135,2]
[350544009,1737957063799,-541.0,0.00021271,2]
[350544010,1737957063809,-310.38,0.00021819,2]
[350544011,1737957063818,-7805.52747683,0.00022534,61]
[350544012,1737957063830,-10048.55464695,0.00022534,61]
[350544013,1737957063842,-1703.88250269,0.00022534,61]
[350544014,1737957063858,-561.72089405,0.00020998,2]
[350544015,1737957063867,-1009.58364154,0.00022534,61]
[350544016,1737957063879,-2433367.49786728,0.00022534,61]
[350544017,1737957063894,-11199.99999847,0.00022534,61]
[350544018,1737957063905,-7512.0,0.00022534,61]
[350544019,1737957063917,-86634.98890948,0.00022534,61]
[350544020,1737957063928,-817.9920126,0.00022534,61]
[350544021,1737957063985,-500.0,0.00020997,2]
[350544022,1737957063995,-500.0,0.00021134,2]
[350544023,1737957064004,-3821.57091893,0.00022534,61]
[350544024,1737957064017,-500.6,0.00022534,61]
[350544037,1737957732385,8052.85579057,0.000235,120]
[350544038,1737957732408,1712.1,0.000235,120]
[350544039,1737957732445,1000000.0,0.000235,120]
[350544040,1737957732465,175.0,0.000235,120]
[350544041,1737957732485,1090.4,0.000235,120]
[350544042,1737957742485,251.861727,0.00013973,2]
[350544050,1737958048099,-1415.86113555,0.00016737,2]
[350544051,1737958048122,-1025.88115284,0.00016906,2]
[350544052,1737958048150,-540.3224408,0.00016906,2]
[350544057,1737958145112,-3144.54599753,0.00017424,2]
[350544058,1737958145132,-1111.21968122,0.000176,2]
[350544059,1737958145153,-201.1521482,0.00018682,2]
[350544060,1737958145173,-274.078232,0.00018751,2]
[350544061,1737958145194,-283.101443,0.00019465,2]
[350544062,1737958145216,-500.0,0.00019472,2]
[350544063,1737958145236,-300.0,0.00019472,2]
[350544064,1737958145257,-10628.36597101,0.00019473,2]
[350544065,1737958149171,-5375.17541649,0.00019473,2]
[350544066,1737958149194,-500.0,0.00019609,2]
[350544067,1737958149217,-500.0,0.00019746,2]
[350544068,1737958149239,-1291.74,0.00019999,2]
[350544069,1737958149263,-539.29,0.00019999,2]
[350544070,1737958149285,-500.0,0.00019999,2]
[350544071,1737958149306,-500.0,0.00019999,2]
[350544072,1737958149327,-500.0,0.00019999,2]
[350544073,1737958149350,-500.0,0.00019999,2]
[350544074,1737958149371,-500.0,0.00019999,2]
[350544075,1737958149393,-1766.37,0.00019999,2]
[350544076,1737958149416,-500.0,0.00019999,2]
[350544077,1737958149438,-500.0,0.00019999,2]
[350544078,1737958149458,-500.0,0.00019999,2]
[350544079,1737958149479,-500.0,0.00019999,2]
[350544080,1737958149504,-500.0,0.00019999,2]
[350544081,1737958149527,-500.0,0.00019999,2]
[350544082,1737958149548,-386.00369179,0.00019999,2]
[350544083,1737958149571,-987.83,0.00019999,2]
[350544084,1737958149595,-2881.37,0.00019999,2]
[350544085,1737958149616,-590.16,0.00019999,2]
[350544086,1737958149637,-509.42641806,0.00019999,2]
[350544087,1737958149658,-531.63,0.00019999,2]
[350544088,1737958149679,-500.0,0.00019999,2]
[350544089,1737958149699,-500.0,0.00019999,2]
[350544090,1737958149723,-1235.94,0.00019999,2]
[350544091,1737958149745,-500.0,0.00019999,2]
[350544092,1737958149767,-500.0,0.00019999,2]
[350544093,1737958149792,-295.0,0.0002,3]
[350544094,1737958149813,-294.0,0.0002,3]
[350544095,1737958149833,-294.0,0.0002,3]
[350544096,1737958149854,-294.0,0.0002,3]
[350544097,1737958149875,-6753.0,0.0002,2]
[350544098,1737958149896,-160.0,0.00020094,2]
[350544099,1737958149919,-500.0,0.00020098,2]
[350544100,1737958149940,-500.0,0.00020098,2]
[350544101,1737958149961,-500.0,0.00020098,2]
[350544102,1737958149982,-500.0,0.00020098,2]
[350544103,1737958150003,-500.0,0.00020098,2]
[350544104,1737958150131,-500.0,0.00020098,2]
[350544105,1737958150153,-500.0,0.00020098,2]
[350544106,1737958150175,-500.0,0.00020098,2]
[350544107,1737958150197,-214.6519102,0.00020098,2]
[350544108,1737958150219,-500.0,0.00020099,2]
[350544109,1737958150240,-500.0,0.00020099,2]
[350544110,1737958150262,-500.0,0.00020099,2]
[350544111,1737958150283,-500.0,0.00020099,2]
[350544112,1737958150303,-500.0,0.00020099,2]
[350544113,1737958150324,-500.0,0.00020099,2]
[350544114,1737958150344,-500.0,0.00020099,2]
[350544115,1737958150364,-500.0,0.00020099,2]
[350544116,1737958150385,-500.0,0.00020099,2]
[350544117,1737958150413,-500.0,0.00020099,2]
[350544118,1737958150434,-500.0,0.00020099,2]
[350544119,1737958150457,-500.0,0.00020099,2]
[350544120,1737958150479,-186.48804255,0.00020099,2]
[350544121,1737958150500,-500.0,0.00020099,2]
[350544122,1737958150522,-289.83715974,0.00020099,2]
[350544123,1737958150542,-500.0,0.00020099,2]
[350544124,1737958150563,-500.0,0.00020099,2]
[350544125,1737958150585,-500.0,0.00020099,2]
[350544126,1737958150605,-500.0,0.00020099,2]
[350544127,1737958150625,-500.0,0.00020099,2]
[350544128,1737958150646,-973.13,0.00020099,2]
[350544129,1737958150666,-500.0,0.00020099,2]
[350544130,1737958150686,-500.0,0.00020099,2]
[350544131,1737958150706,-500.0,0.00020099,2]
[350544132,1737958150728,-500.0,0.00020099,2]
[350544133,1737958150749,-526.67923138,0.00020099,2]
[350544134,1737958150771,-500.0,0.00020099,2]
[350544135,1737958150791,-500.0,0.00020099,2]
[350544136,1737958150812,-500.0,0.00020099,2]
[350544137,1737958150833,-500.0,0.00020099,2]
[350544138,1737958150854,-500.0,0.00020099,2]
[350544139,1737958150875,-500.0,0.00020099,2]
[350544140,1737958150896,-500.0,0.00020099,2]
[350544141,1737958150917,-500.0,0.00020099,2]
[350544142,1737958150938,-500.0,0.00020099,2]
[350544143,1737958150958,-500.0,0.00020099,2]
[350544144,1737958150978,-500.0,0.00020099,2]
[350544145,1737958150998,-500.0,0.00020099,2]
[350544146,1737958151021,-606.60522008,0.00020099,2]
[350544147,1737958151042,-500.0,0.00020099,2]
[350544148,1737958151062,-500.0,0.00020099,2]
[350544149,1737958151082,-500.0,0.00020099,2]
[350544150,1737958151102,-500.0,0.00020099,2]
[350544151,1737958151122,-500.0,0.00020099,2]
[350544152,1737958151142,-500.0,0.00020099,2]
[350544153,1737958151162,-500.0,0.00020099,2]
[350544154,1737958151182,-500.0,0.00020099,2]
[350544155,1737958151203,-500.0,0.00020099,2]
[350544156,1737958151226,-500.0,0.00020099,2]
[350544157,1737958151246,-500.0,0.00020099,2]
[350544158,1737958151269,-500.0,0.00020099,2]
[350544159,1737958151290,-500.0,0.00020099,2]
[350544160,1737958151311,-500.0,0.00020099,2]
[350544161,1737958151331,-500.0,0.00020099,2]
[350544162,1737958151355,-861.3,0.00020099,2]
[350544163,1737958151375,-500.0,0.00020099,2]
[350544164,1737958151396,-500.0,0.00020099,2]
[350544165,1737958151420,-500.0,0.00020099,2]
[350544166,1737958151442,-500.0,0.00020099,2]
[350544167,1737958151463,-500.0,0.00020099,2]
[350544168,1737958151486,-880.51,0.00020099,2]
[350544169,1737958151507,-500.0,0.00020099,2]
[350544170,1737958151528,-500.0,0.00020099,2]
[350544171,1737958151548,-500.0,0.00020099,2]
[350544172,1737958151569,-1674.18,0.00020099,2]
[350544173,1737958151590,-500.0,0.00020099,2]
[350544174,1737958151611,-500.0,0.00020099,2]
[350544175,1737958151631,-225.03095226,0.00020099,2]
[350544176,1737958151653,-500.0,0.00020099,2]
[350544177,1737958151675,-500.0,0.00020099,2]
[350544178,1737958151696,-500.0,0.00020099,2]
[350544179,1737958151718,-500.0,0.00020099,2]
[350544180,1737958151739,-500.0,0.00020099,2]
[350544181,1737958151762,-500.0,0.00020099,2]
[350544182,1737958151783,-500.0,0.00020099,2]
[350544183,1737958151807,-500.0,0.00020099,2]
[350544184,1737958151829,-500.0,0.00020099,2]
[350544185,1737958151851,-500.0,0.00020099,2]
[350544186,1737958151872,-500.0,0.00020099,2]
[350544187,1737958151894,-500.0,0.00020099,2]
[350544188,1737958151915,-601.67,0.00020099,2]
[350544189,1737958151937,-500.0,0.00020099,2]
[350544190,1737958151957,-500.0,0.00020099,2]
[350544191,1737958151979,-500.0,0.00020099,2]
[350544192,1737958152000,-500.0,0.00020099,2]
[350544193,1737958152023,-500.0,0.00020099,2]
[350544194,1737958152047,-1199.73,0.00020099,2]
[350544195,1737958152068,-516.93262703,0.00020099,2]
[350544196,1737958152091,-500.0,0.00020099,2]
[350544197,1737958152113,-500.0,0.00020099,2]
[350544198,1737958152135,-501.92441151,0.00020099,2]
[350544199,1737958152156,-500.0,0.00020099,2]
[350544200,1737958152176,-500.0,0.00020099,2]
[350544201,1737958152293,-500.0,0.00020099,2]
[350544202,1737958152314,-500.0,0.00020099,2]
[350544203,1737958152336,-645.99,0.00020099,2]
[350544204,1737958152356,-500.0,0.00020099,2]
[350544205,1737958152376,-500.0,0.00020099,2]
[350544206,1737958152398,-500.0,0.00020099,2]
[350544207,1737958152421,-500.0,0.00020099,2]
[350544208,1737958152443,-500.0,0.00020099,2]
[350544209,1737958152464,-500.0,0.00020099,2]
[350544210,1737958152486,-500.0,0.00020099,2]
[350544211,1737958152506,-500.0,0.00020099,2]
[350544212,1737958152527,-500.0,0.00020099,2]
[350544213,1737958152547,-500.0,0.00020099,2]
[350544214,1737958152567,-500.0,0.00020099,2]
[350544215,1737958152588,-505.11144224,0.00020099,2]
[350544216,1737958152609,-500.0,0.00020099,2]
[350544217,1737958152629,-500.0,0.00020099,2]
[350544218,1737958152649,-500.0,0.00020099,2]
[350544219,1737958152670,-500.0,0.00020099,2]
[350544220,1737958152690,-500.0,0.00020099,2]
[350544221,1737958152711,-500.0,0.00020099,2]
[350544222,1737958152732,-699.34,0.00020099,2]
[350544223,1737958152752,-500.0,0.00020099,2]
[350544224,1737958152774,-500.0,0.00020099,2]
[350544225,1737958152794,-500.0,0.00020099,2]
[350544226,1737958152816,-500.0,0.00020099,2]
[350544227,1737958152836,-500.0,0.00020099,2]
[350544228,1737958152857,-500.0,0.00020099,2]
[350544229,1737958152878,-500.0,0.00020099,2]
[350544230,1737958152898,-500.0,0.00020099,2]
[350544231,1737958152919,-500.0,0.00020099,2]
[350544232,1737958152940,-500.0,0.00020099,2]
[350544233,1737958152961,-500.0,0.00020099,2]
[350544234,1737958152982,-500.0,0.00020099,2]
[350544235,1737958153003,-500.0,0.00020099,2]
[350544236,1737958153024,-500.0,0.00020099,2]
[350544237,1737958153044,-500.0,0.00020099,2]
[350544238,1737958153063,-500.0,0.00020099,2]
[350544239,1737958153084,-500.0,0.00020099,2]
[350544240,1737958153105,-636.38882771,0.00020099,2]
[350544241,1737958153125,-500.0,0.00020099,7]
[350544242,1737958153147,-500.0,0.00020099,2]
[350544243,1737958153168,-500.0,0.00020099,2]
[350544244,1737958153190,-505.25518868,0.00020099,2]
[350544245,1737958153211,-500.0,0.00020099,2]
[350544246,1737958153232,-500.0,0.00020099,2]
[350544247,1737958153254,-500.0,0.00020099,2]
[350544248,1737958153282,-500.0,0.00020099,2]
[350544249,1737958153310,-500.0,0.00020099,2]
[350544250,1737958153335,-500.0,0.00020099,2]
[350544251,1737958153363,-500.0,0.00020099,2]
[350544252,1737958153391,-500.0,0.00020099,2]
[350544253,1737958153424,-500.0,0.00020099,2]
[350544254,1737958153452,-500.0,0.00020099,2]
[350544255,1737958153481,-1080.33,0.00020099,2]
[350544256,1737958153513,-500.0,0.00020099,2]
[350544257,1737958153540,-515.5626792,0.00020099,2]
[350544258,1737958153567,-3421.42,0.00020099,2]
[350544259,1737958153594,-500.45554931,0.00020099,2]
[350544260,1737958153622,-500.0,0.00020099,2]
[350544261,1737958153651,-500.0,0.00020099,2]
[350544262,1737958153680,-500.0,0.00020099,2]
[350544263,1737958153704,-500.0,0.00020099,2]
[350544264,1737958153730,-500.0,0.00020099,2]
[350544265,1737958153760,-500.0,0.00020099,2]
[350544266,1737958153784,-539.3,0.000201,2]
[350544267,1737958153815,-1291.74,0.00020136,2]
[350544268,1737958153841,-539.29,0.00020136,2]
[350544269,1737958153867,-500.0,0.00020136,2]
[350544270,1737958153892,-500.0,0.00020136,2]
[350544271,1737958153917,-500.0,0.00020136,2]
[350544272,1737958153944,-500.0,0.00020136,2]
[350544273,1737958153972,-500.0,0.00020136,2]
[350544274,1737958153999,-1766.37,0.00020136,2]
[350544275,1737958154025,-322.70572094,0.00020136,2]
[350544276,1737958154050,-500.0,0.00020136,2]
[350544277,1737958154075,-500.0,0.00020136,2]
[350544278,1737958154100,-500.0,0.00020136,2]
[350544279,1737958154126,-500.0,0.00020136,2]
[350544280,1737958154152,-500.0,0.00020136,2]
[350544281,1737958154181,-987.83,0.00020136,2]
[350544282,1737958154209,-2881.37,0.00020136,2]
[350544283,1737958154236,-590.16,0.00020136,2]
[350544284,1737958154262,-531.63,0.00020136,2]
[350544285,1737958154288,-500.0,0.00020136,2]
[350544286,1737958154315,-500.0,0.00020136,2]
[350544287,1737958154343,-1235.94,0.00020136,2]
[350544288,1737958154369,-500.0,0.00020136,2]
[350544289,1737958154395,-500.0,0.00020136,2]
[350544290,1737958154423,-500.0,0.00020164,2]
[350544291,1737958154450,-155.06810353,0.00020235,2]
[350544292,1737958154476,-396.12856023,0.00020236,2]
[350544293,1737958154622,-500.0,0.00020236,2]
[350544294,1737958154655,-500.0,0.00020236,2]
[350544295,1737958154675,-500.0,0.00020236,2]
[350544296,1737958154696,-500.0,0.00020236,2]
[350544297,1737958154716,-629.82962211,0.00020236,2]
[350544298,1737958154739,-500.0,0.00020236,2]
[350544299,1737958154766,-500.0,0.00020236,2]
[350544300,1737958154787,-500.0,0.00020236,2]
[350544301,1737958154807,-500.0,0.00020236,2]
[350544302,1737958154827,-500.0,0.00020236,2]
[350544303,1737958154848,-500.0,0.00020236,2]
[350544304,1737958154869,-500.0,0.00020236,2]
[350544305,1737958154891,-500.0,0.00020236,2]
[350544306,1737958154912,-500.0,0.00020236,2]
[350544307,1737958154935,-500.0,0.00020236,2]
[350544308,1737958154956,-500.0,0.00020236,2]
[350544309,1737958154977,-973.13,0.00020236,2]
[350544310,1737958154997,-500.0,0.00020236,2]
[350544311,1737958155020,-500.0,0.00020236,2]
[350544312,1737958155041,-500.0,0.00020236,2]
[350544313,1737958155062,-500.0,0.00020236,2]
[350544314,1737958155083,-583.23031053,0.00020236,2]
[350544315,1737958155103,-500.0,0.00020236,2]
[350544316,1737958155124,-500.0,0.00020236,2]
[350544317,1737958155144,-500.0,0.00020236,2]
[350544318,1737958155165,-500.0,0.00020236,2]
[350544319,1737958155186,-500.0,0.00020236,2]
[350544320,1737958155207,-500.0,0.00020236,2]
[350544321,1737958155226,-500.0,0.00020236,2]
[350544322,1737958155246,-500.0,0.00020236,2]
[350544323,1737958155268,-500.0,0.00020236,2]
[350544324,1737958155288,-500.0,0.00020236,2]
[350544325,1737958155309,-500.0,0.00020236,2]
[350544326,1737958155331,-500.0,0.00020236,2]
[350544327,1737958155352,-500.0,0.00020236,2]
[350544328,1737958155373,-500.0,0.00020236,2]
[350544329,1737958155393,-500.0,0.00020236,2]
[350544330,1737958155418,-500.0,0.00020236,2]
[350544331,1737958155439,-500.0,0.00020236,2]
[350544332,1737958155462,-500.0,0.00020236,2]
[350544333,1737958155484,-500.0,0.00020236,2]
[350544334,1737958155505,-500.0,0.00020236,2]
[350544335,1737958155528,-500.0,0.00020236,2]
[350544336,1737958155549,-500.0,0.00020236,2]
[350544337,1737958155570,-500.0,0.00020236,2]
[350544338,1737958155592,-500.0,0.00020236,2]
[350544339,1737958155612,-500.0,0.00020236,2]
[350544340,1737958155634,-861.3,0.00020236,2]
[350544341,1737958155656,-500.0,0.00020236,2]
[350544342,1737958155676,-500.0,0.00020236,2]
[350544343,1737958155696,-500.0,0.00020236,2]
[350544344,1737958155717,-500.0,0.00020236,2]
[350544345,1737958155738,-500.0,0.00020236,2]
[350544346,1737958155759,-880.51,0.00020236,2]
[350544347,1737958155780,-500.0,0.00020236,2]
[350544348,1737958155801,-500.0,0.00020236,2]
[350544349,1737958155821,-500.0,0.00020236,2]
[350544350,1737958155842,-1674.18,0.00020236,2]
[350544351,1737958155862,-500.0,0.00020236,2]
[350544352,1737958155882,-500.0,0.00020236,2]
[350544353,1737958155902,-500.0,0.00020236,2]
[350544354,1737958155922,-500.0,0.00020236,2]
[350544355,1737958155942,-500.0,0.00020236,2]
[350544356,1737958155962,-500.0,0.00020236,2]
[350544357,1737958155983,-500.0,0.00020236,2]
[350544358,1737958156004,-500.0,0.00020236,2]
[350544359,1737958156026,-500.0,0.00020236,2]
[350544360,1737958156048,-500.0,0.00020236,2]
[350544361,1737958156070,-500.0,0.00020236,2]
[350544362,1737958156090,-500.0,0.00020236,2]
[350544363,1737958156111,-500.0,0.00020236,2]
[350544364,1737958156132,-601.67,0.00020236,2]
[350544365,1737958156154,-394.08219501,0.00020236,2]
[350544366,1737958156174,-501.42543351,0.00020236,2]
[350544367,1737958156194,-500.0,0.00020236,2]
[350544368,1737958156214,-500.0,0.00020236,2]
[350544369,1737958156235,-500.0,0.00020236,2]
[350544370,1737958156258,-1199.73,0.00020236,2]
[350544371,1737958156280,-500.0,0.00020236,2]
[350544372,1737958156300,-500.0,0.00020236,2]
[350544373,1737958156320,-500.0,0.00020236,2]
[350544374,1737958156341,-500.0,0.00020236,2]
[350544375,1737958156363,-500.0,0.00020236,2]
[350544376,1737958156392,-500.0,0.00020236,2]
[350544377,1737958156415,-645.99,0.00020236,2]
[350544378,1737958156436,-500.0,0.00020236,2]
[350544379,1737958156457,-500.0,0.00020236,2]
[350544380,1737958156477,-500.0,0.00020236,2]
[350544381,1737958156512,-500.0,0.00020236,2]
[350544382,1737958156550,-500.0,0.00020236,2]
[350544383,1737958156570,-500.0,0.00020236,2]
[350544384,1737958156593,-500.0,0.00020236,2]
[350544385,1737958156613,-508.49828736,0.00020236,2]
[350544386,1737958156634,-501.7655275,0.00020236,2]
[350544387,1737958156656,-500.0,0.00020236,2]
[350544388,1737958156678,-500.0,0.00020236,2]
[350544389,1737958156699,-500.0,0.00020236,2]
[350544390,1737958156720,-500.0,0.00020236,2]
[350544391,1737958156745,-500.0,0.00020236,2]
[350544392,1737958156766,-500.0,0.00020236,2]
[350544393,1737958156787,-699.34,0.00020236,2]
[350544394,1737958156808,-500.0,0.00020236,2]
[350544395,1737958156829,-500.0,0.00020236,2]
[350544396,1737958156851,-500.0,0.00020236,2]
[350544397,1737958156871,-500.0,0.00020236,2]
[350544398,1737958156891,-500.0,0.00020236,2]
[350544399,1737958156912,-500.0,0.00020236,2]
[350544400,1737958156933,-500.0,0.00020236,2]
[350544401,1737958156955,-500.0,0.00020236,2]
[350544402,1737958156978,-500.0,0.00020236,2]
[350544403,1737958157002,-500.0,0.00020236,2]
[350544404,1737958157025,-500.0,0.00020236,2]
[350544405,1737958157046,-500.0,0.00020236,2]
[350544406,1737958157068,-500.0,0.00020236,2]
[350544407,1737958157089,-500.0,0.00020236,2]
[350544408,1737958157110,-500.0,0.00020236,2]
[350544409,1737958157130,-500.0,0.00020236,2]
[350544410,1737958157152,-500.0,0.00020236,2]
[350544411,1737958157173,-500.0,0.00020236,2]
[350544412,1737958157194,-500.0,0.00020236,2]
[350544413,1737958157353,-500.0,0.00020236,2]
[350544414,1737958157376,-500.0,0.00020236,2]
[350544415,1737958157399,-500.0,0.00020236,2]
[350544416,1737958157423,-500.0,0.00020236,2]
[350544417,1737958157447,-500.0,0.00020236,2]
[350544418,1737958157467,-500.0,0.00020236,2]
[350544419,1737958157490,-500.0,0.00020236,2]
[350544420,1737958157510,-500.0,0.00020236,2]
[350544421,1737958157532,-1080.33,0.00020236,2]
[350544422,1737958157553,-500.0,0.00020236,2]
[350544423,1737958157573,-500.0,0.00020236,2]
[350544424,1737958157596,-3421.42,0.00020236,2]
[350544425,1737958157616,-500.0,0.00020236,2]
[350544426,1737958157636,-500.0,0.00020236,2]
[350544427,1737958157658,-500.0,0.00020236,2]
[350544428,1737958157678,-500.0,0.00020236,2]
[350544429,1737958157697,-500.0,0.00020236,2]
[350544430,1737958157717,-500.0,0.00020236,2]
[350544431,1737958157738,-350.55443282,0.00020273,2]
[350544432,1737958157760,-468.25059894,0.00020273,2]
[350544433,1737958157783,-500.0,0.00020273,2]
[350544434,1737958157802,-160.72421731,0.00020273,2]
[350544435,1737958157827,-1291.74,0.00020273,2]
[350544436,1737958157848,-539.29,0.00020273,2]
[350544437,1737958157870,-500.0,0.00020273,2]
[350544438,1737958157891,-510.92,0.00020273,2]
[350544439,1737958157912,-512.07741734,0.00020273,2]
[350544440,1737958157934,-500.0,0.00020273,2]
[350544441,1737958157955,-500.0,0.00020273,2]
[350544442,1737958157978,-1766.37,0.00020273,2]
[350544443,1737958157998,-500.0,0.00020273,2]
[350544444,1737958158019,-500.0,0.00020273,2]
[350544445,1737958158043,-500.0,0.00020273,2]
[350544446,1737958158063,-500.0,0.00020273,2]
[350544447,1737958158089,-500.0,0.00020273,2]
[350544448,1737958158113,-987.83,0.00020273,2]
[350544449,1737958158138,-2881.37,0.00020273,2]
[350544450,1737958158161,-590.16,0.00020273,2]
[350544451,1737958158183,-531.63,0.00020273,2]
[350544452,1737958158208,-500.0,0.00020273,2]
[350544453,1737958158231,-500.0,0.00020273,2]
[350544454,1737958158254,-1235.94,0.00020273,2]
[350544455,1737958158277,-500.0,0.00020273,2]
[350544456,1737958158299,-500.0,0.00020273,2]
[350544457,1737958158321,-178.04617312,0.00020373,2]
[350544458,1737958158344,-500.0,0.00020373,2]
[350544459,1737958158365,-500.0,0.00020373,2]
[350544460,1737958158386,-500.0,0.00020373,2]
[350544461,1737958158409,-500.0,0.00020373,2]
[350544462,1737958158430,-500.0,0.00020373,2]
[350544463,1737958158454,-500.0,0.00020373,2]